fUSD/lending_fUSD_20241101
["ID","MTS","AMOUNT","RATE_DAILY","PERIOD"]
[341160383,1730488244814,-151.0,0.0004408,14]
[341160385,1730488244823,-151.0,0.0004408,14]
[341160386,1730488244833,-151.0,0.0004408,14]
[341160388,1730488244842,-151.0,0.0004408,14]
[341160391,1730488244852,-151.0,0.0004408,14]
[341160393,1730488244862,-151.0,0.0004408,14]
[341160395,1730488244873,-151.0,0.0004408,14]
[341160396,1730488244882,-151.0,0.0004408,14]
[341160398,1730488244892,-294759.45752658,0.0004408,2]
[341160411,1730488245000,-36407.59128621,0.0004408,2]
[341160413,1730488245009,-53255.88695605,0.0004408,2]
[341160415,1730488245020,-340.5505,0.00044185,14]
[341160417,1730488245029,-8751.14067129,0.00044189,6]
[341160419,1730488245039,-150.0,0.000442,2]
[341160421,1730488245049,-3366.68336395,0.000442,60]
[341160423,1730488245059,-191.966,0.00044204,14]
[341160425,1730488245068,-208.37775,0.00044204,14]
[341160427,1730488245078,-296.39715606,0.00044359,2]
[341160429,1730488245087,-150.0,0.00044384,2]
[341160431,1730488245097,-150.0,0.00044384,2]
[341160433,1730488245106,-150.0,0.00044384,2]
[341160435,1730488245116,-150.0,0.00044384,2]
[341160437,1730488245125,-150.0,0.00044384,2]
[341160439,1730488245135,-301.66,0.00044384,2]
[341160441,1730488245144,-150.0,0.00044384,2]
[341160443,1730488245154,-301.47,0.00044384,2]
[341160445,1730488245163,-150.0,0.00044384,2]
[341160447,1730488245173,-150.0,0.00044384,2]
[341160449,1730488245182,-150.0,0.00044384,2]
[341160451,1730488245192,-150.0,0.00044384,2]
[341160453,1730488245202,-150.0,0.00044384,2]
[341160455,1730488245213,-300.0,0.00044384,2]
[341160457,1730488245223,-150.0,0.00044384,2]
[341160459,1730488245233,-150.0,0.00044384,2]
[341160461,1730488245242,-150.0,0.00044384,2]
[341160463,1730488245252,-150.0,0.00044384,2]
[341160465,1730488245262,-150.0,0.00044384,2]
[341160467,1730488245271,-150.0,0.00044384,2]
[341160469,1730488245281,-302.42,0.00044384,2]
[341160471,1730488245290,-150.0,0.00044425,7]
[341160473,1730488245300,-150.0,0.00044472,7]
[341160475,1730488245310,-1500.0,0.00044504,7]
[341160477,1730488245320,-2000.0,0.00044521,7]
[341160479,1730488245330,-200.0,0.00044521,7]
[341160481,1730488245339,-1500.0,0.00044525,7]
[341160483,1730488245350,-1500.0,0.00044546,7]
[341160485,1730488245360,-27001.82663713,0.0004456,2]
[341160487,1730488245371,-12450.0,0.00044563,30]
[341160489,1730488245382,-12053.67,0.00044563,30]
[341160491,1730488245391,-151.0,0.00044563,14]
[341160493,1730488245401,-151.0,0.00044563,14]
[341160495,1730488245410,-178.147598,0.00044563,14]
[341160497,1730488245420,-151.0,0.00044563,14]
[341160499,1730488245430,-151.0,0.00044563,14]
[341160501,1730488245440,-151.0,0.00044563,14]
[341160503,1730488245450,-151.0,0.00044563,14]
[341160505,1730488245460,-151.0,0.00044563,14]
[341160506,1730488245469,-151.0,0.00044563,14]
[341160508,1730488245479,-151.0,0.00044563,14]
[341160510,1730488245488,-6705.51565455,0.00044584,2]
[341160513,1730488245500,-282.472,0.00044584,2]
[341160545,1730488245707,-153.0,0.00040042,2]
[341160549,1730488245717,-153.0,0.00040042,2]
[341160552,1730488245727,-153.0,0.00040042,2]
[341160555,1730488245738,-153.0,0.00040042,2]
[341160558,1730488245749,-153.0,0.00040042,2]
[341160560,1730488245760,-153.0,0.00040042,2]
[341160562,1730488245769,-153.0,0.00040042,2]
[341160564,1730488245779,-153.0,0.00040042,2]
[341160566,1730488245789,-153.0,0.00040042,2]
[341160568,1730488245799,-164.533485,0.0004408,14]
[341160570,1730488245808,-164.533485,0.0004408,14]
[341160572,1730488245818,-164.533485,0.00044563,14]
[341160574,1730488245828,-5044.85382689,0.00044584,2]
[341160576,1730488245838,-2639.8888391,0.00044584,2]
[341160578,1730488245847,-3415.7304,0.00044584,2]
[341160580,1730488245857,-200.0,0.00044584,2]
[341160582,1730488245867,-200.0,0.00044584,2]
[341160584,1730488245878,-200.0,0.00044584,2]
[341160586,1730488245888,-323.0,0.00044584,2]
[341160588,1730488245898,-813.66175,0.00044625,14]
[341160590,1730488245907,-151.35225,0.00044625,14]
[341160592,1730488245917,-680.0,0.00044738,2]
[341160594,1730488245927,-1301.44,0.00044764,120]
[341160596,1730488245937,-294.47247901,0.00044767,14]
[341160605,1730488246021,-2.78027099,0.00044767,14]
[341160608,1730488246031,-1664.539713,0.0004477,2]
[341160610,1730488246043,-632.10253956,0.0004477,2]
[341160612,1730488246055,-1727.125,0.0004477,2]
[341160782,1730488380749,585.0,0.00044584,120]
[341160783,1730488381717,250.0,0.00017,2]
[341160784,1730488382978,300.0,0.00019,2]
[341160785,1730488384213,350.0,0.00021,2]
[341160786,1730488409326,-400.0,0.00023,2]
[341160787,1730488417406,154.01,0.00019178,2]
[341160788,1730488571450,177.29,0.00019178,2]
[341160790,1730488612908,157.19,0.00015342,2]
[341160791,1730488663876,447.5447247,0.00044584,120]
[341160792,1730488684286,-200.0,0.00023,2]
[341160793,1730488684308,-450.0,0.00025,2]
[341160795,1730489112413,2534.01,0.00025,2]
[341161174,1730489167224,9962.55261804,0.00021,2]
[341161321,1730489271839,400.0,0.00044584,36]
[341161322,1730489284709,49838.1677852,0.00015,2]
[341161323,1730489284737,18229.6156148,0.00015,2]
[341161325,1730489306417,156.99,0.00015342,2]
[341161331,1730489334453,708.51944473,0.00044584,30]
[341161348,1730489432001,-824.91388,0.00020895,2]
[341161349,1730489432010,-1811.8935898,0.000209,2]
[341161350,1730489432020,-1136.27027504,0.00021,2]
[341161351,1730489432032,-187.48861676,0.00021,2]
[341161352,1730489432053,-4469.88689247,0.0002152,2]
[341161353,1730489432079,-50000.0,0.00021999,2]
[341161354,1730489432105,-500.0,0.00021999,2]
[341161355,1730489432128,-502.09536571,0.00021999,2]
[341161356,1730489432153,-500.0,0.00021999,2]
[341161357,1730489432175,-500.0,0.00021999,2]
[341161358,1730489432195,-500.0,0.00021999,2]
[341161359,1730489432217,-500.0,0.00021999,2]
[341161360,1730489432233,-500.0,0.00021999,2]
[341161361,1730489432242,-500.0,0.00021999,2]
[341161362,1730489432252,-500.0,0.00021999,2]
[341161363,1730489432260,-500.0,0.00021999,2]
[341161364,1730489432269,-500.0,0.00021999,2]
[341161365,1730489432283,-500.0,0.00021999,2]
[341161366,1730489432292,-500.0,0.00021999,2]
[341161367,1730489432301,-215.82151043,0.00021999,2]
[341161368,1730489432310,-500.0,0.00021999,2]
[341161369,1730489432319,-91856.16376467,0.00022,2]
[341161370,1730489432328,-243.90542011,0.00022,2]
[341161372,1730489432338,-904.70996841,0.00022,2]
[341161374,1730489432346,-7960.7262054,0.00022,15]
[341161375,1730489432355,-228.76445728,0.0002211,2]
[341161376,1730489432364,-24302.23321919,0.000225,2]
[341161377,1730489432375,-5820.25053613,0.000225,2]
[341161378,1730489432383,-266.11044652,0.0002301,2]
[341161379,1730489432392,-48963.46926022,0.000232,2]
[341161380,1730489432401,-564.94801878,0.0002322,2]
[341161381,1730489432410,-170.07804724,0.000239,2]
[341161382,1730489432418,-81071.43710096,0.00023922,2]
[341161383,1730489432429,-253574.75717606,0.00023922,2]
[341161384,1730489432438,-971.22595785,0.00024,2]
[341161385,1730489432447,-774.83353151,0.0002402,2]
[341161386,1730489432456,-401.08429354,0.0002421,2]
[341161387,1730489432465,-3515.51957366,0.0002421,2]
[341161388,1730489432474,-1229.5495128,0.0002425,2]
[341161389,1730489432483,-336.86484937,0.0002442,2]
[341161390,1730489432492,-359.25917979,0.0002444,2]
[341161391,1730489432501,-16749.90003573,0.0002445,2]
[341161392,1730489432510,-3400.48260475,0.000245,2]
[341161393,1730489432519,-66652.58868271,0.00025,2]
[341161394,1730489432531,-8064.84624813,0.00025,2]
[341161395,1730489432540,-1737.00966043,0.00025,2]
[341161396,1730489432549,-2894.8371054,0.00025,2]
[341161397,1730489432558,-397.09700734,0.00025,2]
[341161398,1730489432567,-3216.84503981,0.000251,2]
[341161399,1730489432576,-679.99393091,0.000253,5]
[341161400,1730489432584,-171.0,0.00025767,2]
[341161401,1730489432593,-4467.8025,0.00025827,2]
[341161402,1730489432602,-2948.91969265,0.00025927,2]
[341161403,1730489432611,-4301.22966069,0.00026,2]
[341161404,1730489432620,-4433.65,0.00026,2]
[341161405,1730489432629,-517.68970848,0.0002604,2]
[341161406,1730489432638,-12311.92937901,0.000264,2]
[341161407,1730489432647,-800.0,0.00026986,120]
[341161408,1730489432656,-258.24,0.00026986,2]
[341161409,1730489432665,-2616.08,0.00026986,2]
[341161410,1730489432674,-2556.69,0.00026986,2]
[341161411,1730489432683,-150.99,0.00026986,2]
[341161412,1730489432692,-9999.99,0.00026986,2]
[341161413,1730489432701,-500.0,0.00027,2]
[341161414,1730489432710,-4597.22,0.00027,120]
[341161415,1730489432719,-999.99,0.00027,2]
[341161416,1730489432728,-833.38,0.00027,2]
[341161417,1730489432737,-805.28516476,0.00027,7]
[341161418,1730489432748,-2930.34107242,0.00027,2]
[341161419,1730489432759,-388.78934152,0.00027,2]
[341161422,1730489437976,-500.0,0.00023973,2]
[341161423,1730489437986,-500.0,0.00025342,2]
[341161424,1730489437995,-1499.59397389,0.00027,2]
[341161425,1730489438019,-6332.295067,0.00027,2]
[341161426,1730489438029,-409.71227225,0.00027,2]
[341161427,1730489438040,-3000.0,0.00027,2]
[341161428,1730489438049,-984.06327065,0.00027,2]
[341161429,1730489438058,-206.63186436,0.0002736,120]
[341161430,1730489438067,-191.1457295,0.000275,2]
[341161431,1730489438076,-2671.15179623,0.000275,2]
[341161432,1730489438087,-970.83236293,0.000275,2]
[341161433,1730489438106,-380.89584149,0.000275,2]
[341161434,1730489438120,-4757.00324211,0.000275,2]
[341161435,1730489438339,-4620.08267553,0.000275,2]
[341161436,1730489438348,-3374.45553019,0.00028,2]
[341161437,1730489438358,-150.0,0.00028532,7]
[341161438,1730489438368,-550.0,0.00029,2]
[341161439,1730489438378,-1256.82156721,0.00029,3]
[341161440,1730489438387,-527.99,0.00029705,2]
[341161441,1730489438396,-194.76,0.00029705,2]
[341161442,1730489438406,-19592.45189137,0.000299,2]
[341161453,1730489439943,-690.34200092,0.000299,2]
[341161454,1730489439955,-2025.26791969,0.000299,2]
[341161455,1730489440030,-1259.96086,0.000299,2]
[341161456,1730489440188,-50548.67155045,0.000299,2]
[341161457,1730489440198,-225.84686018,0.0002999,2]
[341161458,1730489440209,-185.783,0.0003,2]
[341161459,1730489440218,-9626.00298627,0.0003,14]
[341161460,1730489440228,-20949.07181243,0.0003,15]
[341161461,1730489440364,-500.0,0.0003,15]
[341161462,1730489440376,-414.56480973,0.0003,15]
[341161463,1730489440387,-5144.35782982,0.0003,15]
[341161464,1730489440396,-1252.64365017,0.0003,2]
[341161465,1730489440405,-218.823,0.0003,2]
[341161466,1730489440415,-8283.95859508,0.0003,2]
[341161467,1730489440426,-1727.12371651,0.0003,2]
[341161468,1730489440436,-1013.50328971,0.0003,2]
[341161469,1730489440447,-318.91252988,0.0003,2]
[341161470,1730489440457,-301.999999,0.0003,7]
[341161471,1730489440467,-151.0,0.0003,7]
[341161472,1730489440476,-206.511772,0.0003,7]
[341161473,1730489440485,-159.33,0.00030752,2]
[341161474,1730489440495,-600.0,0.00031,2]
[341161475,1730489440504,-322.80305195,0.00031,5]
[341161476,1730489440513,-413.72182762,0.0003153,7]
[341161477,1730489440522,-250.0,0.00031766,2]
[341161478,1730489440531,-1250.96289471,0.00032,30]
[341161479,1730489440543,-15787.19085387,0.000325,2]
[341161480,1730489440552,-4772.10524729,0.000325,2]
[341161481,1730489440564,-1037.12,0.000325,2]
[341161482,1730489440575,-2013.91091517,0.000325,2]
[341161483,1730489440587,-1673.82558486,0.000325,2]
[341161484,1730489440596,-4586.04078349,0.000328,2]
[341161485,1730489440605,-150.0,0.000329,120]
[341161486,1730489440614,-650.0,0.00033,2]
[341161487,1730489440623,-11670.20068197,0.00033,2]
[341161488,1730489440634,-4256.69949789,0.00033,2]
[341161507,1730489443015,-971.47312342,0.0003038,2]
[341161508,1730489443059,-340.91687658,0.0003038,2]
[341161509,1730489443068,-8837.73490245,0.00033,2]
[341161510,1730489443080,-575.93,0.00033784,2]
[341161511,1730489443091,-250.0,0.00034731,120]
[341161512,1730489443100,-700.0,0.00035,2]
[341161513,1730489443110,-63125.63377955,0.00035,2]
[341161514,1730489443121,-4874.1811259,0.00035,2]
[341161515,1730489443192,-349.4461015,0.00035,2]
[341161517,1730489443425,-5987.97141704,0.00035,2]
[341161520,1730489446170,-6895.6888,0.00035,2]
[341161522,1730489446255,-384.29,0.00035,2]
[341161528,1730489685342,250.0,0.00017,2]
[341161529,1730489686471,300.0,0.00019,2]
[341161531,1730490259353,400.0,0.00044577,30]
[341161540,1730490369531,-350.0,0.00021,2]
[341161541,1730490381252,-400.0,0.00023,2]
[341161542,1730490410695,-184.39,0.00024727,2]
[341161543,1730490410721,-450.0,0.00025,2]
[341161545,1730490416313,157.53,0.00015342,2]
[341161547,1730490518232,150.0,0.00021,3]
[341161554,1730490632047,-1489.03689814,0.00024727,2]
[341161555,1730490632057,-646.80190186,0.0002588,2]
[341161556,1730490632068,-10124.6930839,0.0002588,2]
[341161557,1730490632078,-275.9970157,0.0002598,2]
[341161558,1730490632089,-915.29022052,0.0002598,2]
[341161559,1730490632100,-13276.58872478,0.0002598,2]
[341161560,1730490632109,-178.417,0.00026111,2]
[341161561,1730490632118,-163.87041872,0.00026624,2]
[341161562,1730490632127,-824.6525,0.00026786,2]
[341161563,1730490632136,-500.0,0.00026899,2]
[341161564,1730490632145,-246.20239005,0.00026899,2]
[341161565,1730490632155,-9999.99,0.000269,2]
[341161566,1730490632164,-999.99,0.00026959,2]
[341161567,1730490632173,-150.99,0.00026959,2]
[341161568,1730490632182,-150.0,0.00026959,2]
[341161569,1730490632192,-513.86,0.00026986,120]
[341161570,1730490632201,-1600.0,0.00026999,2]
[341161571,1730490632211,-500.0,0.00027,2]
[341161572,1730490632220,-2179.47850392,0.00027362,2]
[341161573,1730490632230,-1526.0,0.00027404,2]
[341161574,1730490632239,-550.0,0.00029,2]
[341161575,1730490632248,-636.14,0.00029314,2]
[341161576,1730490632261,-532.5745,0.0003,2]
[341161577,1730490632270,-191.966,0.0003,2]
[341161578,1730490632279,-151.0,0.0003,120]
[341161579,1730490632288,-343.439,0.0003,2]
[341161580,1730490632298,-200.0,0.00030177,2]
[341161581,1730490632306,-1000.0,0.00030296,2]
[341161582,1730490632316,-575.93,0.00030521,2]
[341161583,1730490632324,-250.0,0.00030575,2]
[341161584,1730490632333,-200.0,0.00030821,2]
[341161585,1730490632342,-246.01,0.00030828,10]
[341161586,1730490632351,-23900.0,0.00030838,2]
[341161587,1730490632360,-500.0,0.00030891,2]
[341161588,1730490632369,-263.99,0.00030935,2]
[341161589,1730490632495,-600.0,0.00031,2]
[341161590,1730490632505,-164.54,0.00031023,2]
[341161591,1730490632516,-2704.52,0.00031035,2]
[341161592,1730490632525,-408.22,0.00031069,2]
[341161593,1730490632538,-150.0,0.00031077,7]
[341161594,1730490632547,-175.33,0.00031149,120]
[341161595,1730490632557,-250.0,0.000312,2]
[341161596,1730490632567,-2682.01,0.00031305,2]
[341161597,1730490632576,-636.14,0.00031577,2]
[341161598,1730490632588,-156.64,0.00032241,2]
[341161599,1730490632599,-156.64,0.00032322,2]
[341161600,1730490632610,-156.64,0.00032403,2]
[341161601,1730490632620,-92.88499139,0.00032483,2]
[341161602,1730490636220,-63.75500861,0.00032483,2]
[341161603,1730490636230,-156.64,0.00032564,2]
[341161604,1730490636241,-500.0,0.00032756,2]
[341161605,1730490636250,-650.0,0.00033,2]
[341161606,1730490636261,-167.08,0.00033107,2]
[341161607,1730490636270,-420.14338856,0.00033841,2]
[341161608,1730490636281,-215.99661144,0.00033841,2]
[341161609,1730490636290,-500.86301168,0.00033843,5]
[341161610,1730490636299,-1000.0,0.00034083,2]
[341161611,1730490636308,-1000.0,0.00034125,2]
[341161612,1730490636317,-150.0,0.00034548,10]
[341161613,1730490636326,-532.5745,0.00034649,2]
[341161614,1730490636336,-154.92,0.0003468,2]
[341161615,1730490636345,-169.31028554,0.000349,2]
[341161616,1730490636354,-102966.15524364,0.00035,2]
[341161617,1730490636376,-4057.61514411,0.00035,2]
[341161618,1730490636387,-603.03497768,0.00035,2]
[341161778,1730490638343,-346.0,0.00035,2]
[341161779,1730490638357,-11255.01299981,0.00035,2]
[341161780,1730490638367,-198.15588934,0.00035,2]
[341161781,1730490638377,-378.20264688,0.00035,10]
[341161782,1730490638387,-2987.73982885,0.00035,2]
[341161783,1730490638400,-3461.9,0.00035,2]
[341161816,1730490640060,-2019.812352,0.00035,2]
[341161817,1730490640336,-13833.82,0.00035,2]
[341161895,1730490643107,-68480.94781915,0.00035,2]
[341161896,1730490643117,-597.8,0.00035,3]
[341161897,1730490643126,-18734.18673549,0.00035,2]
[341161898,1730490643251,-23662.41909363,0.00035,2]
[341161899,1730490643260,-700.0,0.00035,2]
[341161900,1730490643276,-350.0,0.00035,2]
[341161901,1730490643285,-211.61618464,0.00035,2]
[341161902,1730490643297,-48565.26340373,0.00035,2]
[341161925,1730490646119,-1434.73659627,0.00035,2]
[341161927,1730490646130,-185.783,0.00035048,2]
[341161928,1730490646141,-343.439,0.00035067,2]
[341161929,1730490646151,-178.417,0.00035067,2]
[341161930,1730490646161,-7046.11357746,0.000351,30]
[341161931,1730490646171,-156.99,0.00035616,2]
[341161932,1730490646181,-155.0,0.000357,14]
[341161933,1730490646191,-4148.92998898,0.00036,120]
[341161934,1730490646202,-220.56803349,0.00036105,2]
[341161935,1730490646216,-415.57196651,0.00036105,2]
[341161936,1730490646226,-181.969,0.00036561,45]
[341161937,1730490646236,-448.36153349,0.0003663,2]
[341162582,1730490901796,300.0,0.00019725,2]
[341162584,1730490937254,157.56,0.00015342,2]
[341162585,1730490938683,437.0340312,0.00044573,120]
[341162586,1730491502242,250.0,0.00017,2]
[341162587,1730491503330,300.0,0.00019,2]
[341162588,1730491528124,157.03,0.00015342,2]
[341162893,1730491832240,-350.0,0.00021,2]
[341162895,1730491832249,-400.0,0.00023,2]
[341162897,1730491832259,-450.0,0.00025,2]
[341162898,1730491832268,-151.3525,0.00025517,2]
[341162899,1730491832277,-61.04464948,0.000269,2]
[341162900,1730491832451,-1491.52592206,0.000269,2]
[341162901,1730491832462,-8143.66660026,0.000269,2]
[341162902,1730491832471,-500.0,0.00027,2]
[341162903,1730491832481,-1552.57057152,0.00027098,2]
[341162904,1730491832490,-150.99,0.00027198,2]
[341162905,1730491832500,-478.39,0.00027198,2]
[341162906,1730491832509,-300.0,0.00027297,2]
[341162907,1730491832519,-160.52,0.00027298,2]
[341162908,1730491832528,-6773.94,0.00027298,2]
[341162909,1730491832537,-9999.99,0.00027298,2]
[341162910,1730491832547,-999.99,0.00027298,2]
[341162911,1730491832556,-550.0,0.00029,2]
[341162913,1730491832566,-164.95576904,0.00029335,2]
[341162915,1730491832575,-4996.36,0.00029357,2]
[341162917,1730491832584,-1133.8,0.00029704,2]
[341162919,1730491832594,-150.0,0.00029704,7]
[341162921,1730491832604,-458.92525,0.0003,2]
[341162923,1730491832614,-170.2755,0.0003,2]
[341162925,1730491832624,-164.05,0.00030269,2]
[341162927,1730491832635,-250.0,0.00030944,2]
[341162929,1730491832644,-600.0,0.00031,2]
[341162931,1730491832653,-177.95,0.00031381,2]
[341162933,1730491832662,-1511.97068612,0.00031747,15]
[341162935,1730491832671,-164.05,0.00031782,2]
[341162937,1730491832680,-43707.86008366,0.00031837,2]
[341162957,1730491838191,-859.84736003,0.00031837,2]
[341162958,1730491838204,-1301.15361802,0.00031837,2]
[341162959,1730491838218,-749.86877271,0.00031837,2]
[341162960,1730491838229,-6329.97878758,0.00031837,2]
[341162961,1730491838245,-496.4957689,0.00031837,2]
[341162962,1730491838403,-13308.29166186,0.00031837,2]
[341162963,1730491838510,-37010.14324801,0.00031837,2]
[341162964,1730491838564,-21999.616,0.00031837,2]
[341162965,1730491838575,-7017.27603513,0.00031837,2]
[341162966,1730491838584,-160.52,0.00031847,2]
[341162967,1730491838593,-1128.628334,0.00031847,2]
[341162985,1730491843225,-2398.97951036,0.00031847,2]
[341162986,1730491843237,-2760.0870906,0.00031847,2]
[341162996,1730491846344,-16922.23394001,0.00031847,2]
[341162997,1730491846356,-16056.670582,0.00031847,2]
[341162998,1730491846368,-5212.46054303,0.00031847,2]
[341162999,1730491846377,-297.30692583,0.00031873,2]
[341163000,1730491846386,-600.0,0.00031992,2]
[341163001,1730491846395,-23900.0,0.00032064,2]
[341163002,1730491846404,-416.2,0.00032105,2]
[341163003,1730491846414,-734.11,0.00032188,2]
[341163004,1730491846423,-9379.92253114,0.00032626,2]
[341163005,1730491846434,-22244.07746886,0.00032626,2]
[341163006,1730491846443,-650.0,0.00033,2]
[341163007,1730491846452,-177.95,0.00033146,2]
[341163008,1730491846462,-164.05,0.00033296,2]
[341163009,1730491846472,-235.76,0.00033463,2]
[341163010,1730491846481,-250.0,0.00034106,2]
[341163011,1730491846490,-393.26,0.00034119,2]
[341163012,1730491846499,-2887.08,0.00034124,2]
[341163013,1730491846508,-734.11,0.00034452,2]
[341163015,1730491846517,-1511.97068612,0.00034531,15]
[341163016,1730491846526,-458.92525,0.00034599,2]
[341163017,1730491846535,-151.3525,0.00034599,2]
[341163018,1730491846544,-164.05,0.00034809,2]
[341163019,1730491846553,-170.2755,0.00034828,2]
[341163020,1730491846562,-250.0,0.00034846,120]
[341163021,1730491846571,-177.95,0.0003491,2]
[341163022,1730491846678,-700.0,0.00035,2]
[341163023,1730491846719,-500.0,0.00035,2]
[341163024,1730491846728,-175.35,0.00035549,120]
[341163025,1730491846737,-166.6,0.00035578,2]
[341163026,1730491846746,-400.0,0.00035619,2]
[341163027,1730491846755,-600.0,0.00035992,2]
[341163028,1730491846764,-168.91027858,0.00036223,2]
[341163029,1730491846774,-22223.54974815,0.0003627,2]
[341163030,1730491846783,-164.05,0.00036323,2]
[341163031,1730491846792,-160.52,0.00036397,2]
[341163032,1730491846801,-181.969,0.0003655,45]
[341163033,1730491846811,-734.11,0.00036716,2]
[341163034,1730491846820,-9520.0,0.00036845,2]
[341163035,1730491846829,-750.0,0.00037,2]
[341163036,1730491846839,-153.0,0.00037162,2]
[341163037,1730491846848,-153.0,0.00037162,2]
[341163038,1730491846857,-1511.97068612,0.00037314,15]
[341163039,1730491846867,-497.0,0.000374,2]
[341163040,1730491846876,-1289.0,0.000375,2]
[341163041,1730491846886,-163.32,0.00037641,2]
[341163042,1730491846897,-26093.0534621,0.000379,2]
[341163043,1730491846908,-900.0,0.000379,13]
[341163044,1730491846918,-163.32,0.00038017,2]
[341163045,1730491846928,-239.50611986,0.00038346,2]
[341163046,1730491846938,-8532.91,0.00038356,2]
[341163047,1730491846948,-82708.12798111,0.00038356,2]
[341163048,1730491846967,-104740.27089046,0.00038356,2]
[341163049,1730491846978,-1745.7,0.00038356,2]
[341163050,1730492078241,156.99,0.00015342,2]
[341163053,1730492597558,1011.9,0.000231,30]
[341163079,1730493032397,-1540.14980589,0.00021,2]
[341163080,1730493032406,-213.15982388,0.00024899,2]
[341163081,1730493032415,-213.15982387,0.000249,2]
[341163082,1730493032425,-300.0,0.00024999,2]
[341163083,1730493032434,-49256.03438954,0.00025,2]
[341163084,1730493032443,-13788.19329367,0.00025,2]
[341163085,1730493032453,-27697.84303113,0.000253,5]
[341163086,1730493032511,-712.8193242,0.000253,5]
[341163087,1730493032624,-1863.00255466,0.000253,5]
[341163088,1730493032633,-32534.45930049,0.000253,2]
[341163089,1730493032643,-1579.43691729,0.000264,2]
[341163148,1730493040332,-2539.22160595,0.000264,2]
[341163149,1730493040344,-378.31500001,0.000264,2]
[341163150,1730493040355,-1043.812745,0.000264,2]
[341163151,1730493040390,-3491.3688,0.000264,2]
[341163152,1730493040450,-1268.33541034,0.000264,2]
[341163167,1730493043497,-2162.2530716,0.000264,2]
[341163168,1730493043507,-160.52,0.00029105,2]
[341163169,1730493043516,-681.99068726,0.0003,2]
[341163178,1730493046530,-8388.55946776,0.0003,2]
[341163179,1730493046540,-662.84858905,0.0003,2]
[341163180,1730493046551,-9999.99,0.0003,2]
[341163181,1730493046562,-8837.73490245,0.00033,2]
[341163182,1730493046572,-1151.80328345,0.000335,2]
[341163183,1730493046583,-7036.86493885,0.000335,2]
[341163184,1730493046592,-300.0,0.00034697,2]
[341163185,1730493046604,-1058.37948032,0.000349,15]
[341163186,1730493046614,-74764.93677936,0.00035,2]
[341163187,1730493046625,-378.20264688,0.00035,10]
[341163188,1730493046636,-2987.73982885,0.00035,2]
[341163189,1730493046646,-668.54,0.00035948,2]
[341163190,1730493046656,-181.969,0.00036548,45]
[341163191,1730493046667,-1058.37948028,0.00037328,15]
[341163192,1730493046677,-196.63,0.00037853,2]
[341163193,1730493046686,-360.0,0.00038006,2]
[341163194,1730493046697,-23900.0,0.00038123,2]
[341163195,1730493046708,-6065.039289,0.000382,2]
[341163196,1730493046725,-668.54,0.00038211,2]
[341163198,1730493046735,-180.0,0.000383,120]
[341163200,1730493046746,-310.37692517,0.00038327,2]
[341163202,1730493046756,-297.28720943,0.00038355,2]
[341163204,1730493046769,-125767.20430931,0.00038356,2]
[341163208,1730493046794,-9672.08656798,0.00038356,2]
[341163210,1730493046805,-37991.79076069,0.00038356,2]
[341163212,1730493046817,-59289.517,0.00038356,2]
[341163214,1730493046828,-1424.60047544,0.00038356,2]
[341163216,1730493046839,-11861.62088658,0.00038356,2]
[341163218,1730493046848,-261.14,0.00038427,2]